{"text_format":"2","workbook":"xlsx","n_sheets":14,"sheets":["Instructions","Summary","a. Personnel","b. Fringe","c. Travel","d. Equipment","e. Supplies","f. Contractual","g. Construction","h. Other","i. Indirect","j. Cost Share","SF-424A Cost Categories","SF-424A Minus FFRDC"],"not_rendered":{"charts":0,"images":0,"macros":0,"external_links":0,"defined_names":102,"comments":2,"pivot_tables":0},"unopened":[],"bounds":{"document_bytes":16777216,"sheet_cells":100000,"run_cost":"one","rows_first":2000,"rows_last":500,"rows_between":2000,"halvings":0,"cell_chars":16384,"cell_head_chars":4096},"cells_cut":0,"cells_raw":0,"read":"whole","date_system":"1900"}

{"sheet":"Instructions","index":0,"n_rows":37,"n_cols":14,"rows_kept":37,"cut":false,"hidden":false,"merged":[[1,2,6,15],[12,3,15,7],[12,9,15,14],[8,4,11,7],[8,3,11,3],[8,9,11,9],[8,10,11,14],[17,6,20,11],[25,3,32,4],[30,7,30,10],[33,3,35,7],[36,3,39,3],[36,4,39,7],[36,9,39,9],[36,10,39,14],[33,9,35,14],[21,6,29,11],[25,13,32,14],[16,3,23,4],[16,13,23,14]]}
[]
[null,null,"Budget Justification Worksheet Instructions"]
[]
[]
[]
[]
[]
[]
[null,null,null,1,"What is a Budget Justification Worksheet?",{"$nulls":4},2,"Cost Categories Tabs vs.\n Funding Allocation Tabs"]
[]
[]
[]
[null,null,null,"The budget justification worksheet is where applicants break down total project costs into nine budget categories and total resources allocated for the project into two categories (Federal or Cost Share).",{"$nulls":5},"\nCost Category Tabs (a. through i.): These tabs are used to break down and justify costs by specific categories. Each tab corresponds to a different type of expense.\n\n"]
[]
[]
[]
[null,null,null,"All costs must be reasonable, allocable, and allowable and directly relevant to the project, including costs covered by matching share. All costs must be justified in the project.",{"$nulls":9},"Cost Share (j.): This tab is used to identify resources and contributions to the project that are included as Cost Share (to be identified on tab j.). Do not record expenses on this tab."]
[{"$nulls":6},"WAIT! READ THIS BEFORE you get started."]
[]
[]
[]
[{"$nulls":6},"IMPORTANT. Please indicate how many budget periods the project spans. Based on your selection, certain fields will be dynamically adjusted to ensure only relevant information is collected. If a selection is not made, the Budget Justification Worksheet will default to include 1 budget period. \n\nA budget period is the time interval from the start date of a funded portion of an award to the end date of that funded portion, during which Recipients and Subrecipients are authorized to incur financial obligations. Typically, budget periods are established on an annual basis. Please refer to the DOE Guide to Financial Assistance located at https://www.energy.gov/management/financial-assistance for more information. "]
[]
[]
[]
[null,null,null,"\nAll tabs are password protected to preserve the integrity of formulas. However, extra rows have been included on each tab and can be unhidden to provide extra space as needed. To reveal these hidden rows, please follow these steps:\n1) Select Endmost Cell: Press the Ctrl + End keys simultaneously. This ensures the entire sheet will be selected in the next step. ",{"$nulls":9},"\nThe budget justification must meticulously adhere to the Department of Energy's financial assistance regulations (2 CFR Part 200, as adopted and supplemented by 2 CFR Part 910). A thorough review of these regulations is required.\n\nIf you need assistance at any point, reach out to the DOE Contact. "]
[]
[]
[]
[]
[{"$nulls":7},"Make Selection"]
[]
[]
[null,null,null,"2) Select All Cells: Press the Ctrl + A keys simultaneously. This action will select all cells on the active worksheet tab.\n3) Unhide Rows: Once all cells are selected, press the Ctrl + SHIFT + 9 keys simultaneously. This action will unhide any hidden rows within the selected range.\n",{"$nulls":5},"Double-check for completeness. Before submitting, ensure all required fields in each tab are completed. Cells requiring information will dynamically highlight yellow to alert for any missing information."]
[]
[]
[null,null,null,3,"Unhiding Extra Rows",{"$nulls":4},4,"Additional Notes"]

{"sheet":"Summary","index":1,"n_rows":36,"n_cols":10,"rows_kept":36,"cut":false,"hidden":false,"merged":[[18,7,19,7],[17,3,17,4],[1,3,2,8],[9,1,9,9],[18,5,19,5],[18,6,19,6],[18,8,19,8],[18,9,19,9],[3,8,3,9],[4,8,4,9],[16,5,16,6],[17,5,17,6],[3,6,3,7],[4,6,4,7],[3,2,3,5],[4,2,4,5],[35,1,36,9],[6,1,6,9],[7,1,7,9],[11,1,17,1],[10,2,11,2],[10,7,11,7],[10,8,11,8],[10,9,11,9],[18,2,19,2],[18,3,19,3],[18,4,19,4],[10,3,11,4],[15,5,15,6],[16,3,16,4],[14,3,14,4],[15,3,15,4],[10,5,11,6],[12,5,12,6],[13,5,13,6],[14,5,14,6],[12,3,12,4],[13,3,13,4]]}
[]
[null,"Detailed Budget Justification",null,"Summary"]
[null,"NETL Rev. 11/12/2025"]
[null,"Award Number:",{"$nulls":4},"Date of Submission:"]
[null,"Award Recipient:",{"$nulls":4},"Form submitted by: "]
[{"$nulls":9},"(May be award recipient or sub-recipient)"]
[null,"Please read the instructions on each worksheet tab before starting. For all questions, please ask the DOE contact."]
[null,"\n1. This spreadsheet should be used to provide detailed budget information for award application, negotiation, or budget revision.\n2. This summary tab will auto populate with information provided in workbook tabs a. Personnel through j. Cost Share. Budget information is NOT entered on this tab.\n3. Fill out the blank white cells in workbook tabs a through j with detailed information on and support for project costs in each Category line item within each worksheet tab. \n4. The total budget presented on tabs a. Personnel through j. Cost Share must include both Federal (DOE) and Non-Federal (cost share) portions.\n5. All costs incurred by the preparer's sub-recipients, contractors, and Federal Research and Development Centers (FFRDCs), should be entered only in tab f. Contractual. All other sections are for the costs of the preparer only.\n6. Ensure all entered costs are allowable, allocable, and reasonable in accordance with the administrative requirements prescribed in 2 CFR 200, and the applicable cost principles for each entity type: FAR Part 31 for For-Profit entities; and 2 CFR Part 200 Subpart E - Cost Principles for all other non-federal entities.  \n7. Add rows as needed throughout tabs  a. Personnel through j. Cost Share. If rows are added, formulas/calculations may need to be adjusted by the preparer. Do not add rows to this Summary tab. If the project contains more than five budget periods, consult the DOE contact before adding additional budget period rows or columns. \n8. For a definition of budget period, please refer to the Department of Energy Guide to Financial Assistance located at https://www.energy.gov/management/articles/department-energy-guide-financial-assistance. \n\n"]
[]
[null,"SUMMARY OF BUDGET CATEGORY COSTS PROPOSED\nThe values in this summary table are from entries made in subsequent tabs, only blank white cells require data entry"]
[null,"Section A - Budget Summary",null,"Federal",null,"Cost Share",null,"Total Project Costs","Cost Share %","Proposed Budget Period Dates"]
[]
[null,null,"Budget Period 1",{"$f":"H13-F13","v":0},null,{"$f":"'j. Cost Share'!E28","v":0},null,{"$f":"C35","v":0},{"$f":"IF(H13>0,F13/H13,0)","v":0}]
[null,null,"Budget Period 2",{"$f":"H14-F14","v":0},null,{"$f":"'j. Cost Share'!F28","v":0},null,{"$f":"D35","v":0},0]
[null,null,"Budget Period 3",{"$f":"H15-F15","v":0},null,{"$f":"'j. Cost Share'!G28","v":0},null,{"$f":"E35","v":0},0]
[null,null,"Budget Period 4",{"$f":"H16-F16","v":0},null,{"$f":"'j. Cost Share'!H28","v":0},null,{"$f":"F35","v":0},0]
[null,null,"Budget Period 5",{"$f":"H17-F17","v":0},null,{"$f":"'j. Cost Share'!I28","v":0},null,{"$f":"G35","v":0},0]
[null,null,"Total",{"$f":"SUM(D13:D17)","v":0},null,{"$f":"SUM(F13:F17)","v":0},null,{"$f":"SUM(H13:H17)","v":0},0]
[null,"Section B - Budget Categories","Budget Period 1","Budget Period 2","Budget Period 3","Budget Period 4","Budget Period 5"," Total Project Costs","% of Project","Comments (as needed)"]
[null,"CATEGORY"]
[null,"a. Personnel",{"$f":"'a. Personnel'!F76","v":0},{"$f":"'a. Personnel'!I76","v":0},{"$f":"'a. Personnel'!L76","v":0},{"$f":"'a. Personnel'!O76","v":0},{"$f":"'a. Personnel'!R76","v":0},{"$f":"SUM(C21:G21)","v":0},{"$f":"IF(H21>0,H21/H18,0)","v":0}]
[null,"b. Fringe Benefits",{"$f":"'b. Fringe'!H24","v":0},{"$f":"'b. Fringe'!K24","v":0},{"$f":"'b. Fringe'!N24","v":0},{"$f":"'b. Fringe'!Q24","v":0},{"$f":"'b. Fringe'!T24","v":0},{"$f":"SUM(C22:G22)","v":0},{"$f":"IF(H22>0,H22/H18,0)","v":0}]
[null,"c. Travel",{"$f":"'c. Travel'!M50","v":0},{"$f":"'c. Travel'!M93","v":0},{"$f":"'c. Travel'!M136","v":0},{"$f":"'c. Travel'!M179","v":0},{"$f":"'c. Travel'!M222","v":0},0,{"$f":"IF(H23>0,H23/H18,0)","v":0}]
[null,"d. Equipment",{"$f":"'d. Equipment'!F29","v":0},{"$f":"'d. Equipment'!F51","v":0},{"$f":"'d. Equipment'!F73","v":0},{"$f":"'d. Equipment'!F95","v":0},{"$f":"'d. Equipment'!F117","v":0},0,{"$f":"IF(H24>0,H24/H18,0)","v":0}]
[null,"e. Supplies",{"$f":"'e. Supplies'!F29","v":0},{"$f":"'e. Supplies'!F50","v":0},{"$f":"'e. Supplies'!F71","v":0},{"$f":"'e. Supplies'!F93","v":0},{"$f":"'e. Supplies'!F114","v":0},0,{"$f":"IF(H25>0,H25/H18,0)","v":0}]
[null,"f. Contractual"]
[null,"Sub-recipient",{"$f":"'f. Contractual'!G28","v":0},{"$f":"'f. Contractual'!H28","v":0},{"$f":"'f. Contractual'!I28","v":0},{"$f":"'f. Contractual'!J28","v":0},{"$f":"'f. Contractual'!K28","v":0},0,{"$f":"IF(H27>0,H27/H18,0)","v":0}]
[null,"Contractor",{"$f":"'f. Contractual'!G51","v":0},{"$f":"'f. Contractual'!H51","v":0},{"$f":"'f. Contractual'!I51","v":0},{"$f":"'f. Contractual'!J51","v":0},{"$f":"'f. Contractual'!K51","v":0},0,{"$f":"IF(H28>0,H28/H18,0)","v":0}]
[null,"FFRDC",{"$f":"'f. Contractual'!G66","v":0},{"$f":"'f. Contractual'!H66","v":0},{"$f":"'f. Contractual'!I66","v":0},{"$f":"'f. Contractual'!J66","v":0},{"$f":"'f. Contractual'!K66","v":0},0,{"$f":"IF(H29>0,H29/H18,0)","v":0}]
[null,"Total Contractual ",{"$f":"SUM(C27:C29)","v":0},{"$f":"SUM(D27:D29)","v":0},{"$f":"SUM(E27:E29)","v":0},{"$f":"SUM(F27:F29)","v":0},{"$f":"SUM(G27:G29)","v":0},0,{"$f":"IF(H30>0,H30/H18,0)","v":0}]
[null,"g. Construction",{"$f":"'g. Construction'!D32","v":0},{"$f":"'g. Construction'!D54","v":0},{"$f":"'g. Construction'!D76","v":0},{"$f":"'g. Construction'!D98","v":0},{"$f":"'g. Construction'!D120","v":0},0,{"$f":"IF(H31>0,H31/H18,0)","v":0}]
[null,"h. Other Direct Costs",{"$f":"'h. Other'!D29","v":0},{"$f":"'h. Other'!D51","v":0},{"$f":"'h. Other'!D73","v":0},{"$f":"'h. Other'!D95","v":0},{"$f":"'h. Other'!D117","v":0},0,{"$f":"IF(H32>0,H32/H18,0)","v":0}]
[null,"Total Direct Costs",{"$f":"C21+C22+C23+C24+C25+C30+C31+C32","v":0},{"$f":"D21+D22+D23+D24+D25+D30+D31+D32","v":0},{"$f":"E21+E22+E23+E24+E25+E30+E31+E32","v":0},{"$f":"F21+F22+F23+F24+F25+F30+F31+F32","v":0},{"$f":"G21+G22+G23+G24+G25+G30+G31+G32","v":0},0,{"$f":"IF(H33>0,H33/H18,0)","v":0}]
[null,"i. Indirect Charges",{"$f":"'i. Indirect'!F17","v":0},{"$f":"'i. Indirect'!G17","v":0},{"$f":"'i. Indirect'!H17","v":0},{"$f":"'i. Indirect'!I17","v":0},{"$f":"'i. Indirect'!J17","v":0},0,{"$f":"IF(H34>0,H34/H18,0)","v":0}]
[null,"Total Costs",{"$f":"C33+C34","v":0},{"$f":"D33+D34","v":0},{"$f":"E33+E34","v":0},{"$f":"F33+F34","v":0},0,{"$f":"H33+H34","v":0},{"$f":"I33+I34","v":0}]
[null,"Additional Explanation (as needed):"]

{"sheet":"a. Personnel","index":2,"n_rows":78,"n_cols":21,"rows_kept":78,"cut":false,"hidden":false,"merged":[[2,1,2,20],[11,18,12,18],[1,18,1,20],[11,3,11,5],[11,6,11,8],[11,9,11,11],[1,1,1,2],[77,1,78,20],[11,2,12,2],[3,1,4,20],[76,1,76,4],[11,1,12,1],[11,20,12,20],[11,19,12,19],[11,12,11,14],[11,15,11,17],[75,1,75,2],[6,1,6,20],[9,1,9,20],[8,18,8,20]]}
[]
[null,"Detailed Budget Justification"]
[null,"a. Personnel"]
[null,"INSTRUCTIONS - PLEASE READ!!!\n1. List project costs solely for employees of the entity completing this form.  All personnel costs for subrecipients and contractors must be included under f. Contractual.\n2. All personnel should be identified by position title and not employee name. Enter the amount of time (e.g., hours or % of time) and the base hourly rate and the total direct personnel compensation will automatically calculate. Rate basis (e.g., rate \n    negotiated for each hour worked on the project, labor distribution report, state civil service rates, etc.) must also be identified.\n3. If a position and hours are attributed to multiple employees, the number of employees for that position title must be identified in the Position Title field (e.g. Four (4) Technicians working 4000 hours).\n4. Each budget period is rounded to the nearest dollar.\n5. If additional rows are needed, please see instruction box #3 on the Instructions tab."]
[]
[]
[null,"Loaded Labor Rates"]
[null,"If loaded labor rates are proposed, please reflect the total dollar amount of indirect costs (fringe and other overheads) which were captured in the labor costs. Total Indirect Costs Loaded into Labor Rates:  ($)"]
[{"$nulls":18},"Enter zero if not applicable."]
[null,"A detailed description must be included to provide a breakdown of the burdened costs for each personnel hourly pay rate. The description should reflect the percentage added to the actual pay rates and can be included in the Additional Explanation section below or as an attachment to this form. DOE will review all components of the loaded labor rate to ensure cost reasonableness and allowability (e.g. are fee or profit included?). "]
[]
[null,"SOPO Task #","Position Title","Budget Period 1",null,null,"Budget Period 2",null,null,"Budget Period 3",null,null,"Budget Period 4",null,null,"Budget Period 5",null,null,"Project Total Hours","Project Total Dollars","Rate Basis"]
[null,null,null,"Time \n(Hrs.)","Hourly Rate\n($/Hr.)","Total Budget Period 1","Time \n(Hrs.)","Hourly Rate\n($/Hr.)","Total Budget Period 2","Time \n(Hrs.)","Hourly Rate\n($/Hr.)","Total Budget Period 3","Time \n(Hrs.)","Hourly Rate\n($/Hr.)","Total Budget Period 4","Time \n(Hrs.)","Hourly Rate\n($/Hr.)","Total Budget Period 5"]
[null,1,"Sr. Engineer (EXAMPLE!!!)",2000,85,{"$f":"D14*E14","v":170000},200,85,{"$f":"G14*H14","v":17000},200,85,{"$f":"J14*K14","v":17000},200,50,{"$f":"M14*N14","v":10000},200,50,{"$f":"P14*Q14","v":10000},{"$f":"D14+G14+J14","v":2400},{"$f":"IF(OR(Instructions!$H$31=\"3 Budget Periods or Less\", Instructions!$H$31=\"Make Selection\"), F14+I14+L14, IF(Instructions!$H$31=\"4 Budget Periods\", F14+I14+L14+O14, IF(Instructions!$H$31=\"5 Budget Periods\", F14+I14+L14+O14+R14, \"\")))","v":204000}]
[null,2,"Program Manager (EXAMPLE!!!)",1500,50,75000,150,50,7500,150,50,7500,0,0,0,0,0,0,{"$f":"D15+G15+J15","v":1800},{"$f":"IF(OR(Instructions!$H$31=\"3 Budget Periods or Less\", Instructions!$H$31=\"Make Selection\"), F15+I15+L15, IF(Instructions!$H$31=\"4 Budget Periods\", F15+I15+L15+O15, IF(Instructions!$H$31=\"5 Budget Periods\", F15+I15+L15+O15+R15, \"\")))","v":90000}]
[{"$nulls":5},{"$f":"D16*E16","v":0},null,null,{"$f":"G16*H16","v":0},null,null,{"$f":"J16*K16","v":0},null,null,{"$f":"M16*N16","v":0},null,null,{"$f":"P16*Q16","v":0},{"$f":"SUM(D16+G16+J16+M16+P16)","v":0},{"$f":"SUM(F16+I16+L16+O16+R16)","v":0}]
[{"$nulls":5},0,null,null,0,null,null,0,null,null,0,null,null,0,{"$f":"SUM(D17+G17+J17+M17+P17)","v":0},0]
[{"$nulls":5},0,null,null,0,null,null,0,null,null,0,null,null,0,0,0]
[{"$nulls":5},0,null,null,0,null,null,0,null,null,0,null,null,0,0,0]
[{"$nulls":5},0,null,null,0,null,null,0,null,null,0,null,null,0,0,0]
[{"$nulls":5},0,null,null,0,null,null,0,null,null,0,null,null,0,0,0]
[{"$nulls":5},{"$f":"D22*E22","v":0},null,null,{"$f":"G22*H22","v":0},null,null,{"$f":"J22*K22","v":0},null,null,{"$f":"M22*N22","v":0},null,null,{"$f":"P22*Q22","v":0},{"$f":"SUM(D22+G22+J22+M22+P22)","v":0},{"$f":"SUM(F22+I22+L22+O22+R22)","v":0}]
[{"$nulls":5},0,null,null,0,null,null,0,null,null,0,null,null,0,0,0]
[{"$nulls":5},0,null,null,0,null,null,0,null,null,0,null,null,0,0,0]
[{"$nulls":5},0,null,null,0,null,null,0,null,null,0,null,null,0,0,0]
[{"$nulls":5},0,null,null,0,null,null,0,null,null,0,null,null,0,0,0]
[{"$nulls":5},0,null,null,0,null,null,0,null,null,0,null,null,0,0,0]
[{"$nulls":5},0,null,null,0,null,null,0,null,null,0,null,null,0,0,0]
[{"$nulls":5},0,null,null,0,null,null,0,null,null,0,null,null,0,0,0]
[{"$nulls":5},0,null,null,0,null,null,0,null,null,0,null,null,0,0,0]
[{"$nulls":5},0,null,null,0,null,null,0,null,null,0,null,null,0,0,0]
[{"$nulls":5},0,null,null,0,null,null,0,null,null,0,null,null,0,0,0]
[{"$nulls":5},0,null,null,0,null,null,0,null,null,0,null,null,0,0,0]
[{"$nulls":5},0,null,null,0,null,null,0,null,null,0,null,null,0,0,0]
[{"$nulls":5},0,null,null,0,null,null,0,null,null,0,null,null,0,0,0]
[{"$nulls":5},0,null,null,0,null,null,0,null,null,0,null,null,0,0,0]
[{"$nulls":5},{"$f":"D37*E37","v":0},null,null,{"$f":"G37*H37","v":0},null,null,{"$f":"J37*K37","v":0},null,null,{"$f":"M37*N37","v":0},null,null,{"$f":"P37*Q37","v":0},{"$f":"SUM(D37+G37+J37+M37+P37)","v":0},{"$f":"SUM(F37+I37+L37+O37+R37)","v":0}]
[{"$nulls":5},0,null,null,0,null,null,0,null,null,0,null,null,0,0,0]
[{"$nulls":5},0,null,null,0,null,null,0,null,null,0,null,null,0,0,0]
[{"$nulls":5},0,null,null,0,null,null,0,null,null,0,null,null,0,0,0]
[{"$nulls":5},0,null,null,0,null,null,0,null,null,0,null,null,0,0,0]
[{"$nulls":5},0,null,null,0,null,null,0,null,null,0,null,null,0,0,0]
[{"$nulls":5},0,null,null,0,null,null,0,null,null,0,null,null,0,0,0]
[{"$nulls":5},0,null,null,0,null,null,0,null,null,0,null,null,0,0,0]
[{"$nulls":5},0,null,null,0,null,null,0,null,null,0,null,null,0,0,0]
[{"$nulls":5},{"$f":"D46*E46","v":0},null,null,{"$f":"G46*H46","v":0},null,null,{"$f":"J46*K46","v":0},null,null,{"$f":"M46*N46","v":0},null,null,{"$f":"P46*Q46","v":0},{"$f":"SUM(D46+G46+J46+M46+P46)","v":0},{"$f":"SUM(F46+I46+L46+O46+R46)","v":0}]
[{"$nulls":5},0,null,null,0,null,null,0,null,null,0,null,null,0,0,0]
[{"$nulls":5},0,null,null,0,null,null,0,null,null,0,null,null,0,0,0]
[{"$nulls":5},0,null,null,0,null,null,0,null,null,0,null,null,0,0,0]
[{"$nulls":5},0,null,null,0,null,null,0,null,null,0,null,null,0,0,0]
[{"$nulls":5},0,null,null,0,null,null,0,null,null,0,null,null,0,0,0]
[{"$nulls":5},0,null,null,0,null,null,0,null,null,0,null,null,0,0,0]
[{"$nulls":5},0,null,null,0,null,null,0,null,null,0,null,null,0,0,0]
[{"$nulls":5},0,null,null,0,null,null,0,null,null,0,null,null,0,0,0]
[{"$nulls":5},0,null,null,0,null,null,0,null,null,0,null,null,0,0,0]
[{"$nulls":5},0,null,null,0,null,null,0,null,null,0,null,null,0,0,0]
[{"$nulls":5},{"$f":"D57*E57","v":0},null,null,{"$f":"G57*H57","v":0},null,null,{"$f":"J57*K57","v":0},null,null,{"$f":"M57*N57","v":0},null,null,{"$f":"P57*Q57","v":0},{"$f":"SUM(D57+G57+J57+M57+P57)","v":0},{"$f":"SUM(F57+I57+L57+O57+R57)","v":0}]
[{"$nulls":5},0,null,null,0,null,null,0,null,null,0,null,null,0,0,0]
[{"$nulls":5},0,null,null,0,null,null,0,null,null,0,null,null,0,0,0]
[{"$nulls":5},0,null,null,0,null,null,0,null,null,0,null,null,0,0,0]
[{"$nulls":5},0,null,null,0,null,null,0,null,null,0,null,null,0,0,0]
[{"$nulls":5},0,null,null,0,null,null,0,null,null,0,null,null,0,0,0]
[{"$nulls":5},0,null,null,0,null,null,0,null,null,0,null,null,0,0,0]
[{"$nulls":5},0,null,null,0,null,null,0,null,null,0,null,null,0,0,0]
[{"$nulls":5},0,null,null,0,null,null,0,null,null,0,null,null,0,0,0]
[{"$nulls":5},0,null,null,0,null,null,0,null,null,0,null,null,0,0,0]
[{"$nulls":5},0,null,null,0,null,null,0,null,null,0,null,null,{"$f":"P67*Q67","v":0},0,0]
[{"$nulls":5},0,null,null,0,null,null,0,null,null,0,null,null,{"$f":"P68*Q68","v":0},0,0]
[{"$nulls":5},0,null,null,0,null,null,0,null,null,0,null,null,0,0,0]
[{"$nulls":5},0,null,null,0,null,null,0,null,null,0,null,null,0,0,0]
[{"$nulls":5},0,null,null,0,null,null,0,null,null,0,null,null,0,0,0]
[{"$nulls":5},0,null,null,0,null,null,0,null,null,0,null,null,0,0,0]
[{"$nulls":5},{"$f":"D73*E73","v":0},null,null,0,null,null,0,null,null,0,null,null,0,0,0]
[{"$nulls":5},{"$f":"D74*E74","v":0},null,null,{"$f":"G74*H74","v":0},null,null,{"$f":"J74*K74","v":0},null,null,{"$f":"M74*N74","v":0},null,null,{"$f":"P74*Q74","v":0},0,0]
[{"$nulls":5},{"$f":"D75*E75","v":0},null,null,{"$f":"G75*H75","v":0},null,null,{"$f":"J75*K75","v":0},null,null,{"$f":"M75*N75","v":0},null,null,{"$f":"P75*Q75","v":0},0,0]
[null,"TOTAL PERSONNEL",null,{"$f":"SUM(D16:D75)","v":0},null,{"$f":"SUM(F16:F75)","v":0},{"$f":"SUM(G16:G75)","v":0},null,{"$f":"SUM(I16:I75)","v":0},{"$f":"SUM(J16:J75)","v":0},null,{"$f":"SUM(L16:L75)","v":0},{"$f":"SUM(M16:M75)","v":0},null,{"$f":"SUM(O16:O75)","v":0},{"$f":"SUM(P16:P75)","v":0},null,{"$f":"SUM(R16:R75)","v":0},{"$f":"SUM(D76+G76+J76+M76+P76)","v":0},{"$f":"F76 + I76+L76+O76+R76","v":0}]
[]
[null,"Additional Explanation (as needed):"]

{"sheet":"b. Fringe","index":3,"n_rows":34,"n_cols":21,"rows_kept":34,"cut":false,"hidden":false,"merged":[[1,1,1,13],[2,1,2,20],[32,1,32,20],[33,1,33,20],[3,1,3,20],[25,1,25,20],[5,8,5,10],[5,11,5,13],[5,5,5,7],[5,14,5,16],[5,17,5,19],[7,1,7,4],[5,1,6,4],[8,1,8,4],[5,20,6,20],[19,1,19,4],[9,1,9,4],[10,1,10,4],[11,1,11,4],[12,1,12,4],[31,1,31,20],[18,1,18,4],[17,1,17,4],[16,1,16,4],[15,1,15,4],[23,1,23,4],[20,1,20,4],[21,1,21,4],[22,1,22,4],[14,1,14,4],[13,1,13,4]]}
[]
[null,"Detailed Budget Justification "]
[null,"b. Fringe Benefits"]
[null,"INSTRUCTIONS - PLEASE READ!!!\n1. Fill out the table below by position title. If all employees receive the same fringe benefits, the Labor Type column can show \"Total Personnel\" instead of listing out all position titles.   \n2. The rates and how they are applied should not be averaged to get one fringe cost percentage. A detailed description must be included to provide DOE a breakdown of the calculation. This description may be provided in the Additional Explanation section below or may be provided in an attachment to this form.  \n3. The fringe benefit rates should be applied to all positions, regardless of whether those funds will be supported by Federal Share or Recipient Cost Share.\n4. Each budget period is rounded to the nearest dollar.\n5. If additional rows are needed, please see instruction box #3 on the Instructions tab."]
[]
[null,"Labor Type",null,null,null,"Budget Period 1",null,null,"Budget Period 2",null,null,"Budget Period 3",null,null,"Budget Period 4",null,null,"Budget Period 5",null,null,"Total Project "]
[{"$nulls":5},"Personnel Costs","Rate","Total","Personnel Costs","Rate","Total","Personnel Costs","Rate","Total","Personnel Costs","Rate","Total","Personnel Costs","Rate","Total"]
[null,"EXAMPLE!!! Sr. Engineer",null,null,null,170000,0.2,{"$f":"F8*G8","v":34000},10000,0.2,{"$f":"I8*J8","v":2000},10000,0.2,{"$f":"L8*M8","v":2000},10000,0.2,{"$f":"O8*P8","v":2000},10000,0.2,{"$f":"R8*S8","v":2000},{"$f":"IF(OR(Instructions!$H$31=\"3 Budget Periods or Less\", Instructions!$H$31=\"Make Selection\"), H8+K8+N8, IF(Instructions!$H$31=\"4 Budget Periods\", H8+K8+N8+Q8, IF(Instructions!$H$31=\"5 Budget Periods\", H8+K8+N8+Q8+T8, \"\")))","v":38000}]
[{"$nulls":7},{"$f":"G9*F9","v":0},null,null,0,null,null,0,null,null,0,null,null,{"$f":"R9*S9","v":0},{"$f":"SUM(H9+K9+N9+Q9+T9)","v":0}]
[{"$nulls":7},{"$f":"G10*F10","v":0},null,null,0,null,null,0,null,null,0,null,null,0,0]
[{"$nulls":7},0,null,null,0,null,null,0,null,null,0,null,null,0,0]
[{"$nulls":7},0,null,null,0,null,null,0,null,null,0,null,null,0,0]
[{"$nulls":7},0,null,null,0,null,null,0,null,null,0,null,null,{"$f":"R13*S13","v":0},0]
[{"$nulls":7},0,null,null,0,null,null,0,null,null,0,null,null,0,0]
[{"$nulls":7},0,null,null,0,null,null,0,null,null,0,null,null,0,0]
[{"$nulls":7},0,null,null,0,null,null,0,null,null,0,null,null,0,0]
[{"$nulls":7},0,null,null,0,null,null,0,null,null,0,null,null,0,0]
[{"$nulls":7},0,null,null,0,null,null,0,null,null,0,null,null,0,0]
[{"$nulls":7},0,null,null,0,null,null,0,null,null,0,null,null,0,0]
[{"$nulls":7},{"$f":"G20*F20","v":0},null,null,0,null,null,0,null,null,0,null,null,0,0]
[{"$nulls":7},{"$f":"G21*F21","v":0},null,null,0,null,null,0,null,null,0,null,null,0,0]
[{"$nulls":7},{"$f":"G22*F22","v":0},null,null,0,null,null,0,null,null,0,null,null,0,0]
[{"$nulls":7},{"$f":"G23*F23","v":0},null,null,0,null,null,0,null,null,0,null,null,0,0]
[null,"TOTAL FRINGE",null,null,null,{"$f":"SUM(F9:F23)","v":0},null,{"$f":"ROUND(SUM(H9:H23),0)","v":0},{"$f":"SUM(I9:I23)","v":0},null,{"$f":"ROUND(SUM(K9:K23),0)","v":0},{"$f":"SUM(L9:L23)","v":0},null,{"$f":"ROUND(SUM(N9:N23),0)","v":0},{"$f":"SUM(O9:O23)","v":0},null,{"$f":"ROUND(SUM(Q9:Q23),0)","v":0},{"$f":"SUM(R9:R23)","v":0},null,{"$f":"ROUND(SUM(T9:T23),0)","v":0},{"$f":"ROUND(SUM(H24+K24+N24+Q24+T24),0)","v":0}]
[]
[null,"A federally approved fringe benefit rate agreement, or a proposed rate supported and agreed upon by DOE for estimating purposes is required at the time of award negotiation if reimbursement for fringe benefits is requested.  \nPlease check (X) one of the options below and provide the requested information if not previously submitted."]
[]
[null,null,null,"A fringe benefit rate has been negotiated with, or approved by, a federal government agency. A copy of the latest rate agreement is/was included with the project application.*"]
[]
[null,null,null,"There is not a current federally approved rate agreement negotiated and available.**"]
[]
[null,"   * If the fringe billing rate is not identified under the federally approved rate agreement, please provide the organization’s benefit package and/or a list of the components/elements that comprise the fringe pool and the cost or percentage of each component/element allocated to the labor costs identified in the Budget Justification. \n\n   ** When this option is checked: (1) If the entity is submitting an indirect rate proposal (IRP), the fringe elements should be identified and a billing rate should be reflected in the IRP; or (2) If the entity is not submitting an IRP, please provide the organization’s benefit package and/or a list of the components/elements that comprise the fringe pool and the cost or percentage of each component/element allocated to the labor costs identified in the Budget Justification."]
[]
[null,"Additional Explanation (as necessary): Please use this box (or an attachment) to list the elements that comprise fringe benefits and how they are applied to the base (e.g. Personnel) to arrive at the fringe benefit rate. "]

{"sheet":"c. Travel","index":4,"n_rows":226,"n_cols":14,"rows_kept":226,"cut":false,"hidden":false,"merged":[[28,3,28,13],[3,1,3,13],[225,1,226,13],[2,1,2,13],[1,1,1,2],[6,3,6,13],[50,3,50,13],[93,3,93,13],[136,3,136,13],[179,3,179,13],[223,1,223,2],[221,1,221,2],[178,1,178,2],[135,1,135,2],[92,1,92,2],[49,1,49,2]]}
[]
[null,"Detailed Budget Justification "]
[null,"c. Travel"]
[null,"INSTRUCTIONS - PLEASE READ!!!\n1. Identify Foreign and Domestic Travel as separate items. \n           a) Examples of Purpose of Travel are subrecipient site visits, DOE meetings, project management meetings, etc. \n           b) Examples of Basis for Estimating Costs are GSA Per Diem Rates (https://www.gsa.gov/travel/plan-book/per-diem-rates), State Department Foreign Per Diem Rates (https://allowances.state.gov/web920/per_diem.asp), \n               travel quotes, past trips, etc.    \n2. All listed travel must be necessary for performance of the Statement of Project Objectives.  \n3. Only travel that is directly associated with this award should be included as a direct travel cost to the award. \n4. Federal travel regulations are contained within the applicable cost principles for all entity types. \n5. Travel costs should remain consistent with travel costs incurred by an organization's during normal business operations as a result of the organizations written travel policy. In absence of a written travel policy, organizations must follow the travel regulations prescribed by the General Services Administration located at https://www.gsa.gov/policy-regulations/regulations/federal-travel-regulation. \n           a) For International Travel please vist https://allowances.state.gov/web920/per_diem.asp?\n           b) Should an entity need to plan on including Local Travel, the DOE will use the GSA Local Travel Policy (https://www.gsa.gov/directives-library/local-travel-policy) to determine reasonablelness.  Absent a written travel policy, \n               organizations must follow GSA's Local Travel Policy.\n6. The number of days is inclusive of day of departure and day of return. \n7. Please enter City and State (or City and Country for International travel) in the Depart From and Destination fields.\n8. If a conference is included in the travel budget, please provide answers to the following questions in the Additional Explanation section on the bottom of the form:\n          a) Please indicate whether any other business unrelated to the project will be conducted while attending the conference. \n          b) Please confirm that the attendees will not be supported by any other DOE (or Federal) awards.   \n          c) Please explain how attending this conference will further the goals of the project.                                                                                                                     \n9. Each budget period is rounded to the nearest dollar.\n10. If additional rows are needed, please see instruction box #3 on the Instructions tab."]
[]
[null,"SOPO Task #","Purpose of Travel","Depart From","Destination","# of Travelers","# of Days (Include day of departure and day of return)","# of Nights ","Flight ($) (Per traveler)","Ground Transport ($) (Per trip, ALL travelers)","Lodging ($) (Per night, per traveler)","Per Diem ($) (Per traveler)","Cost per Trip ($)","Basis for Estimating Costs"]
[null,null,"Domestic Travel","                                                             Budget Period 1"]
[null,1,"EXAMPLE!!!  Visit to PV manufacturer","Dallas, TX","Denver, CO",2,4,3,500,200,200,80,{"$f":"IF(H8=0, (I8*F8)+J8+(L8*0.75)*G8*F8, IF(AND(H8>0,H8<2), (I8*F8)+J8+(K8*H8*F8)+(L8*0.75)*G8*F8, ((I8*F8)+J8+(K8*H8*F8)+(L8*0.75)*2*F8)+(L8*(G8-2)*F8)))","v":2960},"Current GSA rates"]
[{"$nulls":12},0]
[{"$nulls":12},0]
[{"$nulls":12},{"$f":"IF(H11=0, (I11*F11)+J11+(L11*0.75)*G11*F11, IF(AND(H11>0,H11<2), (I11*F11)+J11+(K11*H11*F11)+(L11*0.75)*G11*F11, ((I11*F11)+J11+(K11*H11*F11)+(L11*0.75)*2*F11)+(L11*(G11-2)*F11)))","v":0}]
[{"$nulls":12},{"$f":"IF(H12=0, (I12*F12)+J12+(L12*0.75)*G12*F12, IF(AND(H12>0,H12<2), (I12*F12)+J12+(K12*H12*F12)+(L12*0.75)*G12*F12, ((I12*F12)+J12+(K12*H12*F12)+(L12*0.75)*2*F12)+(L12*(G12-2)*F12)))","v":0}]
[{"$nulls":12},0]
[{"$nulls":12},0]
[{"$nulls":12},0]
[{"$nulls":12},0]
[{"$nulls":12},0]
[{"$nulls":12},0]
[{"$nulls":12},0]
[{"$nulls":12},0]
[{"$nulls":12},0]
[{"$nulls":12},0]
[{"$nulls":12},0]
[{"$nulls":12},0]
[{"$nulls":12},0]
[{"$nulls":12},0]
[{"$nulls":12},0]
[{"$nulls":12},0]
[null,null,"International Travel"]
[{"$nulls":12},{"$f":"IF(H30=0, (I30*F30)+J30+(L30*0.75)*G30*F30, IF(AND(H30>0,H30<2), (I30*F30)+J30+(K30*H30*F30)+(L30*0.75)*G30*F30, ((I30*F30)+J30+(K30*H30*F30)+(L30*0.75)*2*F30)+(L30*(G30-2)*F30)))","v":0}]
[{"$nulls":12},0]
[{"$nulls":12},0]
[{"$nulls":12},0]
[{"$nulls":12},0]
[{"$nulls":12},0]
[{"$nulls":12},0]
[{"$nulls":12},0]
[{"$nulls":12},0]
[{"$nulls":12},0]
[{"$nulls":12},0]
[{"$nulls":12},0]
[{"$nulls":12},0]
[{"$nulls":12},0]
[{"$nulls":12},0]
[{"$nulls":12},0]
[{"$nulls":12},0]
[{"$nulls":12},0]
[{"$nulls":12},0]
[{"$nulls":12},0]
[null,"Budget Period 1 Total",{"$nulls":10},{"$f":"SUM(M9:M28)+SUM(M30:M49)","v":0}]
[null,null,"Domestic Travel","                                                             Budget Period 2"]
[{"$nulls":12},{"$f":"IF(H52=0, (I52*F52)+J52+(L52*0.75)*G52*F52, IF(AND(H52>0,H52<2), (I52*F52)+J52+(K52*H52*F52)+(L52*0.75)*G52*F52, ((I52*F52)+J52+(K52*H52*F52)+(L52*0.75)*2*F52)+(L52*(G52-2)*F52)))","v":0}]
[{"$nulls":12},0]
[{"$nulls":12},0]
[{"$nulls":12},0]
[{"$nulls":12},0]
[{"$nulls":12},0]
[{"$nulls":12},0]
[{"$nulls":12},0]
[{"$nulls":12},0]
[{"$nulls":12},0]
[{"$nulls":12},0]
[{"$nulls":12},0]
[{"$nulls":12},0]
[{"$nulls":12},0]
[{"$nulls":12},0]
[{"$nulls":12},0]
[{"$nulls":12},0]
[{"$nulls":12},0]
[{"$nulls":12},0]
[{"$nulls":12},0]
[null,null,"International Travel"]
[{"$nulls":12},0]
[{"$nulls":12},0]
[{"$nulls":12},0]
[{"$nulls":12},0]
[{"$nulls":12},0]
[{"$nulls":12},0]
[{"$nulls":12},0]
[{"$nulls":12},0]
[{"$nulls":12},0]
[{"$nulls":12},0]
[{"$nulls":12},0]
[{"$nulls":12},0]
[{"$nulls":12},0]
[{"$nulls":12},0]
[{"$nulls":12},0]
[{"$nulls":12},0]
[{"$nulls":12},0]
[{"$nulls":12},0]
[{"$nulls":12},0]
[{"$nulls":12},0]
[null,"Budget Period 2 Total",{"$nulls":10},{"$f":"SUM(M52:M71)+SUM(M73:M92)","v":0}]
[null,null,"Domestic Travel","                                                              Budget Period 3"]
[{"$nulls":12},{"$f":"IF(H95=0, (I95*F95)+J95+(L95*0.75)*G95*F95, IF(AND(H95>0,H95<2), (I95*F95)+J95+(K95*H95*F95)+(L95*0.75)*G95*F95, ((I95*F95)+J95+(K95*H95*F95)+(L95*0.75)*2*F95)+(L95*(G95-2)*F95)))","v":0}]
[{"$nulls":12},0]
[{"$nulls":12},0]
[{"$nulls":12},0]
[{"$nulls":12},0]
[{"$nulls":12},0]
[{"$nulls":12},0]
[{"$nulls":12},0]
[{"$nulls":12},0]
[{"$nulls":12},0]
[{"$nulls":12},0]
[{"$nulls":12},0]
[{"$nulls":12},0]
[{"$nulls":12},0]
[{"$nulls":12},0]
[{"$nulls":12},0]
[{"$nulls":12},0]
[{"$nulls":12},0]
[{"$nulls":12},0]
[{"$nulls":12},0]
[null,null,"International Travel"]
[{"$nulls":12},0]
[{"$nulls":12},0]
[{"$nulls":12},0]
[{"$nulls":12},0]
[{"$nulls":12},0]
[{"$nulls":12},0]
[{"$nulls":12},0]
[{"$nulls":12},0]
[{"$nulls":12},0]
[{"$nulls":12},0]
[{"$nulls":12},0]
[{"$nulls":12},0]
[{"$nulls":12},0]
[{"$nulls":12},0]
[{"$nulls":12},0]
[{"$nulls":12},0]
[{"$nulls":12},0]
[{"$nulls":12},0]
[{"$nulls":12},0]
[{"$nulls":12},0]
[null,"Budget Period 3 Total",{"$nulls":10},{"$f":"SUM(M95:M114)+SUM(M116:M135)","v":0}]
[null,null,"Domestic Travel","                                                              Budget Period 4"]
[{"$nulls":12},{"$f":"IF(H138=0, (I138*F138)+J138+(L138*0.75)*G138*F138, IF(AND(H138>0,H138<2), (I138*F138)+J138+(K138*H138*F138)+(L138*0.75)*G138*F138, ((I138*F138)+J138+(K138*H138*F138)+(L138*0.75)*2*F138)+(L138*(G138-2)*F138)))","v":0}]
[{"$nulls":12},0]
[{"$nulls":12},0]
[{"$nulls":12},0]
[{"$nulls":12},0]
[{"$nulls":12},0]
[{"$nulls":12},0]
[{"$nulls":12},0]
[{"$nulls":12},0]
[{"$nulls":12},0]
[{"$nulls":12},0]
[{"$nulls":12},0]
[{"$nulls":12},0]
[{"$nulls":12},0]
[{"$nulls":12},0]
[{"$nulls":12},0]
[{"$nulls":12},0]
[{"$nulls":12},0]
[{"$nulls":12},0]
[{"$nulls":12},0]
[null,null,"International Travel"]
[{"$nulls":12},0]
[{"$nulls":12},0]
[{"$nulls":12},0]
[{"$nulls":12},0]
[{"$nulls":12},0]
[{"$nulls":12},0]
[{"$nulls":12},0]
[{"$nulls":12},0]
[{"$nulls":12},0]
[{"$nulls":12},0]
[{"$nulls":12},0]
[{"$nulls":12},0]
[{"$nulls":12},0]
[{"$nulls":12},0]
[{"$nulls":12},0]
[{"$nulls":12},0]
[{"$nulls":12},0]
[{"$nulls":12},0]
[{"$nulls":12},0]
[{"$nulls":12},0]
[null,"Budget Period 4 Total",{"$nulls":10},{"$f":"SUM(M138:M157)+SUM(M159:M178)","v":0}]
[null,null,"Domestic Travel","                                                              Budget Period 5"]
[{"$nulls":12},{"$f":"IF(H181=0, (I181*F181)+J181+(L181*0.75)*G181*F181, IF(AND(H181>0,H181<2), (I181*F181)+J181+(K181*H181*F181)+(L181*0.75)*G181*F181, ((I181*F181)+J181+(K181*H181*F181)+(L181*0.75)*2*F181)+(L181*(G181-2)*F181)))","v":0}]
[{"$nulls":12},0]
[{"$nulls":12},0]
[{"$nulls":12},0]
[{"$nulls":12},0]
[{"$nulls":12},0]
[{"$nulls":12},0]
[{"$nulls":12},0]
[{"$nulls":12},0]
[{"$nulls":12},0]
[{"$nulls":12},0]
[{"$nulls":12},0]
[{"$nulls":12},0]
[{"$nulls":12},0]
[{"$nulls":12},0]
[{"$nulls":12},0]
[{"$nulls":12},0]
[{"$nulls":12},0]
[{"$nulls":12},0]
[{"$nulls":12},0]
[null,null,"International Travel"]
[{"$nulls":12},0]
[{"$nulls":12},0]
[{"$nulls":12},0]
[{"$nulls":12},0]
[{"$nulls":12},0]
[{"$nulls":12},0]
[{"$nulls":12},0]
[{"$nulls":12},0]
[{"$nulls":12},0]
[{"$nulls":12},0]
[{"$nulls":12},0]
[{"$nulls":12},0]
[{"$nulls":12},0]
[{"$nulls":12},0]
[{"$nulls":12},0]
[{"$nulls":12},0]
[{"$nulls":12},0]
[{"$nulls":12},0]
[{"$nulls":12},0]
[{"$nulls":12},0]
[null,"Budget Period 5 Total",{"$nulls":10},{"$f":"SUM(M181:M200)+SUM(M202:M221)","v":0}]
[]
[null,"TOTAL TRAVEL",{"$nulls":10},{"$f":"M50+M93+M136+M179+M222","v":0}]
[]
[null,"Additional Explanation (as needed):"]

{"sheet":"d. Equipment","index":5,"n_rows":121,"n_cols":8,"rows_kept":121,"cut":false,"hidden":false,"merged":[[2,1,2,7],[1,1,1,2],[3,1,3,7],[120,1,121,7],[51,1,51,7],[29,1,29,7],[6,1,6,7],[73,1,73,7],[95,1,95,7],[118,1,118,2],[94,1,94,2],[116,1,116,2],[50,1,50,2],[28,1,28,2],[72,1,72,2]]}
[]
[null,"Detailed Budget Justification"]
[null,"d. Equipment"]
[null,"INSTRUCTIONS - PLEASE READ!!!\n1. Equipment means tangible personal property (including information technology systems) having a useful life of more than one year and a per-unit acquisition cost which equals or exceeds the lesser of the capitalization level established by the non-Federal entity for financial statement purposes, or $10,000. Please refer to the applicable Federal regulations in 2 CFR 200 for specific equipment definitions and treatment. \n2. List all equipment below, providing a basis of cost (e.g. contractor quotes, catalog prices, prior invoices, etc.). Briefly justify items as they apply to the Statement of Project Objectives. If it is existing equipment, provide logical support for the estimated value shown. \n3. During award negotiations, provide a contractor quote for all equipment items over $50,000 in price. If the contractor quote is not an exact price match, provide an explanation in the additional explanation section below. If a contractor quote is not practical, such as for a piece of equipment that is purpose-built, first of its kind, or otherwise not available off the shelf, provide a detailed engineering estimate for how the cost estimate was derived.\n4. Each budget period is rounded to the nearest dollar.\n5. If additional rows are needed, please see instruction box #3 on the Instructions tab."]
[]
[null,"SOPO Task #","Equipment Item","Qty","Unit Cost         ","Total Cost             ","Basis of Cost","Justification of need"]
[null,"Budget Period 1"]
[null,"3,4,5","EXAMPLE!!!   Thermal shock chamber",2,70000,{"$f":"D8*E8","v":140000},"Contractor Quote - Attached","Reliability testing of PV modules- Task 4.3"]
[{"$nulls":5},0]
[{"$nulls":5},0]
[{"$nulls":5},0]
[{"$nulls":5},0]
[{"$nulls":5},0]
[{"$nulls":5},0]
[{"$nulls":5},0]
[{"$nulls":5},0]
[{"$nulls":5},{"$f":"D17*E17","v":0}]
[{"$nulls":5},0]
[{"$nulls":5},0]
[{"$nulls":5},0]
[{"$nulls":5},0]
[{"$nulls":5},0]
[{"$nulls":5},0]
[{"$nulls":5},0]
[{"$nulls":5},0]
[{"$nulls":5},0]
[{"$nulls":5},0]
[{"$nulls":5},{"$f":"D28*E28","v":0}]
[null,"Budget Period 1 Total",null,null,null,{"$f":"SUM(F9:F28)","v":0}]
[null,"Budget Period 2"]
[{"$nulls":5},{"$f":"D31*E31","v":0}]
[{"$nulls":5},0]
[{"$nulls":5},0]
[{"$nulls":5},0]
[{"$nulls":5},0]
[{"$nulls":5},0]
[{"$nulls":5},0]
[{"$nulls":5},0]
[{"$nulls":5},0]
[{"$nulls":5},0]
[{"$nulls":5},0]
[{"$nulls":5},0]
[{"$nulls":5},0]
[{"$nulls":5},0]
[{"$nulls":5},0]
[{"$nulls":5},0]
[{"$nulls":5},0]
[{"$nulls":5},0]
[{"$nulls":5},0]
[{"$nulls":5},0]
[null,"Budget Period 2 Total",null,null,null,{"$f":"SUM(F31:F50)","v":0}]
[null,"Budget Period 3"]
[{"$nulls":5},{"$f":"D53*E53","v":0}]
[{"$nulls":5},0]
[{"$nulls":5},0]
[{"$nulls":5},0]
[{"$nulls":5},0]
[{"$nulls":5},0]
[{"$nulls":5},0]
[{"$nulls":5},0]
[{"$nulls":5},0]
[{"$nulls":5},0]
[{"$nulls":5},0]
[{"$nulls":5},0]
[{"$nulls":5},0]
[{"$nulls":5},0]
[{"$nulls":5},0]
[{"$nulls":5},0]
[{"$nulls":5},0]
[{"$nulls":5},0]
[{"$nulls":5},0]
[{"$nulls":5},0]
[null,"Budget Period 3 Total",null,null,null,{"$f":"SUM(F53:F72)","v":0}]
[null,"Budget Period 4"]
[{"$nulls":5},{"$f":"D75*E75","v":0}]
[{"$nulls":5},0]
[{"$nulls":5},0]
[{"$nulls":5},0]
[{"$nulls":5},0]
[{"$nulls":5},0]
[{"$nulls":5},0]
[{"$nulls":5},0]
[{"$nulls":5},0]
[{"$nulls":5},0]
[{"$nulls":5},0]
[{"$nulls":5},0]
[{"$nulls":5},0]
[{"$nulls":5},0]
[{"$nulls":5},0]
[{"$nulls":5},0]
[{"$nulls":5},0]
[{"$nulls":5},0]
[{"$nulls":5},0]
[{"$nulls":5},0]
[null,"Budget Period 4 Total",null,null,null,{"$f":"SUM(F75:F94)","v":0}]
[null,"Budget Period 5"]
[{"$nulls":5},{"$f":"D97*E97","v":0}]
[{"$nulls":5},0]
[{"$nulls":5},0]
[{"$nulls":5},0]
[{"$nulls":5},0]
[{"$nulls":5},0]
[{"$nulls":5},0]
[{"$nulls":5},0]
[{"$nulls":5},0]
[{"$nulls":5},0]
[{"$nulls":5},0]
[{"$nulls":5},0]
[{"$nulls":5},0]
[{"$nulls":5},0]
[{"$nulls":5},0]
[{"$nulls":5},0]
[{"$nulls":5},0]
[{"$nulls":5},0]
[{"$nulls":5},0]
[{"$nulls":5},0]
[null,"Budget Period 5 Total",null,null,null,{"$f":"SUM(F97:F116)","v":0}]
[]
[null,"TOTAL EQUIPMENT",null,null,null,{"$f":"F29+F51+F73+F95+F117","v":0}]
[]
[null,"Additional Explanation (as needed):"]

{"sheet":"e. Supplies","index":6,"n_rows":118,"n_cols":8,"rows_kept":118,"cut":false,"hidden":false,"merged":[[1,1,1,2],[3,1,3,7],[117,1,118,7],[6,1,6,7],[2,1,2,7],[29,1,29,7],[50,1,50,7],[71,1,71,7],[93,1,93,7],[115,1,115,2],[113,1,113,2],[92,1,92,2],[70,1,70,2],[49,1,49,2],[28,1,28,2]]}
[]
[null,"Detailed Budget Justification "]
[null,"e. Supplies"]
[null,"INSTRUCTIONS - PLEASE READ!!!\n1. Supplies are generally defined as an item with an acquisition cost of $10,000 or less and a useful life expectancy of less than one year.  Supplies are generally consumed during the project performance. Please refer to the applicable Federal regulations in 2 CFR 200 for specific supplies definitions and treatment. A computing device is a supply if the acquisition cost is less than the lesser of the capitalization level established by the non-Federal entity for financial statement purposes or $10,000, regardless of the length of its useful life. \n2. List all proposed supplies below, providing a basis of costs (e.g. contractor quotes, catalog prices, prior invoices, etc.). Briefly justify the need for the Supplies as they apply to the Statement of Project Objectives. Note that Supply items must be direct costs to the project at this budget category, and not duplicative of supply costs included in the indirect pool that is the basis of the indirect rate applied for this project.\n3. Multiple supply items valued at $10,000 or less used to assemble an equipment item with a value greater than $10,000 with a useful life of more than one year should be included on the equipment tab. If supply items and costs are ambiguous in nature, contact the DOE representative for proper categorization.  \n4. Each budget period is rounded to the nearest dollar.\n5. If additional rows are needed, please see instruction box #3 on the Instructions tab."]
[]
[null,"SOPO Task #","General Category of Supplies","Qty","Unit Cost         ","Total Cost             ","Basis of Cost","Justification of need"]
[null,"Budget Period 1"]
[null,"1,2","EXAMPLE!!!  Wireless DAS components",10,360,{"$f":"D8*E8","v":3600},"Catalog price","For Alpha prototype - Task 2.4"]
[{"$nulls":5},{"$f":"D9*E9","v":0}]
[{"$nulls":5},0]
[{"$nulls":5},0]
[{"$nulls":5},0]
[{"$nulls":5},0]
[{"$nulls":5},0]
[{"$nulls":5},0]
[{"$nulls":5},0]
[{"$nulls":5},0]
[{"$nulls":5},0]
[{"$nulls":5},0]
[{"$nulls":5},0]
[{"$nulls":5},0]
[{"$nulls":5},0]
[{"$nulls":5},0]
[{"$nulls":5},0]
[{"$nulls":5},0]
[{"$nulls":5},0]
[{"$nulls":5},0]
[{"$nulls":5},0]
[null,"Budget Period 1 Total",null,null,null,{"$f":"SUM(F9:F28)","v":0}]
[null,"Budget Period 2"]
[{"$nulls":5},{"$f":"D31*E31","v":0}]
[{"$nulls":5},0]
[{"$nulls":5},0]
[{"$nulls":5},0]
[{"$nulls":5},0]
[{"$nulls":5},0]
[{"$nulls":5},0]
[{"$nulls":5},0]
[{"$nulls":5},0]
[{"$nulls":5},0]
[{"$nulls":5},0]
[{"$nulls":5},0]
[{"$nulls":5},0]
[{"$nulls":5},0]
[{"$nulls":5},0]
[{"$nulls":5},0]
[{"$nulls":5},0]
[{"$nulls":5},0]
[{"$nulls":5},0]
[null,"Budget Period 2 Total",null,null,null,{"$f":"SUM(F31:F49)","v":0}]
[null,"Budget Period 3"]
[{"$nulls":5},{"$f":"D52*E52","v":0}]
[{"$nulls":5},0]
[{"$nulls":5},0]
[{"$nulls":5},0]
[{"$nulls":5},0]
[{"$nulls":5},0]
[{"$nulls":5},0]
[{"$nulls":5},0]
[{"$nulls":5},0]
[{"$nulls":5},0]
[{"$nulls":5},0]
[{"$nulls":5},0]
[{"$nulls":5},0]
[{"$nulls":5},0]
[{"$nulls":5},0]
[{"$nulls":5},0]
[{"$nulls":5},0]
[{"$nulls":5},0]
[{"$nulls":5},0]
[null,"Budget Period 3 Total",null,null,null,{"$f":"SUM(F52:F70)","v":0}]
[null,"Budget Period 4"]
[{"$nulls":5},{"$f":"D73*E73","v":0}]
[{"$nulls":5},0]
[{"$nulls":5},0]
[{"$nulls":5},0]
[{"$nulls":5},0]
[{"$nulls":5},0]
[{"$nulls":5},0]
[{"$nulls":5},0]
[{"$nulls":5},0]
[{"$nulls":5},0]
[{"$nulls":5},0]
[{"$nulls":5},0]
[{"$nulls":5},0]
[{"$nulls":5},0]
[{"$nulls":5},0]
[{"$nulls":5},0]
[{"$nulls":5},0]
[{"$nulls":5},0]
[{"$nulls":5},0]
[{"$nulls":5},0]
[null,"Budget Period 4 Total",null,null,null,{"$f":"SUM(F73:F92)","v":0}]
[null,"Budget Period 5"]
[{"$nulls":5},{"$f":"D95*E95","v":0}]
[{"$nulls":5},0]
[{"$nulls":5},0]
[{"$nulls":5},0]
[{"$nulls":5},0]
[{"$nulls":5},0]
[{"$nulls":5},0]
[{"$nulls":5},0]
[{"$nulls":5},0]
[{"$nulls":5},0]
[{"$nulls":5},0]
[{"$nulls":5},0]
[{"$nulls":5},0]
[{"$nulls":5},0]
[{"$nulls":5},0]
[{"$nulls":5},0]
[{"$nulls":5},0]
[{"$nulls":5},0]
[{"$nulls":5},0]
[null,"Budget Period 5 Total",null,null,null,{"$f":"SUM(F95:F113)","v":0}]
[]
[null,"TOTAL SUPPLIES",null,null,null,{"$f":"F71+F50+F29+F93+F114","v":0}]
[]
[null,"Additional Explanation (as needed):"]

{"sheet":"f. Contractual","index":7,"n_rows":70,"n_cols":12,"rows_kept":70,"cut":false,"hidden":false,"merged":[[3,1,3,11],[1,7,1,11],[1,1,1,2],[2,1,2,11],[52,2,52,3],[29,2,29,3],[30,2,30,3],[31,2,31,3],[32,2,32,3],[47,2,47,3],[33,2,33,3],[34,2,34,3],[35,2,35,3],[39,2,39,3],[40,2,40,3],[41,2,41,3],[69,1,70,11],[67,1,67,4],[54,2,54,3],[55,2,55,3],[56,2,56,3],[57,2,57,3],[62,2,62,3],[63,2,63,3],[64,2,64,3],[58,2,58,3],[59,2,59,3],[60,2,60,3],[61,2,61,3],[53,2,53,3],[42,2,42,3],[43,2,43,3],[44,2,44,3],[45,2,45,3],[46,2,46,3],[36,2,36,3],[37,2,37,3],[38,2,38,3],[48,2,48,3],[49,2,49,3]]}
[]
[null,"Detailed Budget Justification "]
[null,"f. Contractual"]
[null,"INSTRUCTIONS - PLEASE READ!!!\n1. The entity completing this form must provide all costs related to subrecipients, contractors, and FFRDC partners in the applicable boxes below.  \n2. Subrecipients (partners, sub-awardees): Subrecipients shall submit a Budget Justification describing all project costs and calculations when their total proposed budget exceeds $500,000 of total award costs. These subrecipient forms may be completed by either the subrecipients themselves or by the preparer of this form.  The budget totals on the subrecipient's forms must match the subrecipient entries below. A subrecipient is a legal entity to which a subaward is made, who has performance measured against whether the objectives of the Federal program are met, is responsible for programmatic decision making, must adhere to applicable Federal program compliance requirements, and uses the Federal funds to carry out a program of the organization. All characteristics may not be present and judgment must be used to determine subrecipient vs. contractor status. \n3. Contractors: List all contractors supplying commercial supplies or services used to support the project. For each Contractor cost with total project costs of $250,000 or more, a detailed Contractor quote must be provided. A contractor is a legal entity contracted to provide goods and services within normal business operations, provides similar goods or services to many different purchasers, operates in a competitive environment, provides goods or services that are ancillary to the operation of the Federal program, and is not subject to compliance requirements of the Federal program. All characteristics may not be present and judgment must be used to determine subrecipient vs. contractor status. \n4. Federal Funded Research and Development Centers (FFRDCs): FFRDCs must submit a signed Field Work Proposal during award application. The award recipient may allow the FFRDC to provide this information directly to DOE, however project costs must also be provided below.\n5. BASIS OF COST: If not providing a separate budget justification or specific quote which covers in detail the subrecipient/contractual costs below, the applicant MUST provide a detailed explanation in \"Purpose and Basis of Cost\", of how the cost was derived (i.e. personnel hours at rate of pay).  \n6. Each budget period is rounded to the nearest dollar.\n7. If additional rows are needed, please see instruction box #3 on the Instructions tab."]
[]
[null,"SOPO Task #","Sub-Recipient\nName/Organization","Sub-Recipient Unique Entity Identifier (UEI)","Purpose","Basis of Cost","Budget Period 1","Budget Period 2","Budget Period 3","Budget Period 4","Budget Period 5","Project Total"]
[null,"2,4","EXAMPLE!!!  XYZ Corp.",null,"Partner to develop optimal lens for Gen 2 product. ","Cost estimate based on personnel hours.",48000,32000,16000,{"$f":"SUM(G7:I7)","v":96000},10000,{"$f":"IF(OR(Instructions!$H$31=\"3 Budget Periods or Less\", Instructions!$H$31=\"Make Selection\"), SUM(G7:I7), IF(Instructions!$H$31=\"4 Budget Periods\", SUM(G7:J7), IF(Instructions!$H$31=\"5 Budget Periods\", SUM(G7:K7), \"\")))","v":96000}]
[{"$nulls":11},{"$f":"SUM(G8:K8)","v":0}]
[{"$nulls":11},0]
[{"$nulls":11},0]
[{"$nulls":11},0]
[{"$nulls":11},0]
[{"$nulls":11},0]
[{"$nulls":11},0]
[{"$nulls":11},0]
[{"$nulls":11},0]
[{"$nulls":11},0]
[{"$nulls":11},0]
[{"$nulls":11},0]
[{"$nulls":11},0]
[{"$nulls":11},0]
[]
[{"$nulls":11},0]
[{"$nulls":11},0]
[{"$nulls":11},0]
[{"$nulls":11},0]
[{"$nulls":11},0]
[{"$nulls":5},"Sub-total: ",{"$f":"SUM(G8:G27)","v":0},0,0,0,0,0]
[]
[null,"SOPO Task #","Contractor \nName/Organization",null,"Purpose","Basis of Cost","Budget Period 1","Budget Period 2","Budget Period 3","Budget Period 4","Budget Period 5","Project Total"]
[{"$nulls":11},{"$f":"SUM(G31:K31)","v":0}]
[{"$nulls":11},{"$f":"SUM(G32:K32)","v":0}]
[{"$nulls":11},{"$f":"SUM(G33:K33)","v":0}]
[{"$nulls":11},{"$f":"SUM(G34:K34)","v":0}]
[{"$nulls":11},0]
[{"$nulls":11},0]
[{"$nulls":11},0]
[{"$nulls":11},0]
[{"$nulls":11},0]
[{"$nulls":11},0]
[{"$nulls":11},0]
[{"$nulls":11},{"$f":"SUM(G42:K42)","v":0}]
[{"$nulls":11},0]
[{"$nulls":11},0]
[{"$nulls":11},0]
[{"$nulls":11},0]
[{"$nulls":11},0]
[{"$nulls":11},{"$f":"SUM(G48:K48)","v":0}]
[{"$nulls":11},{"$f":"SUM(G49:K49)","v":0}]
[{"$nulls":11},{"$f":"SUM(G50:K50)","v":0}]
[{"$nulls":5},"Sub-total: ",{"$f":"SUM(G31:G50)","v":0},0,0,0,0,0]
[]
[null,"SOPO Task #","FFRDC\nName/Organization",null,"Purpose","Basis of Cost","Budget Period 1","Budget Period 2","Budget Period 3","Budget Period 4","Budget Period 5","Project Total"]
[{"$nulls":11},{"$f":"SUM(G54:K54)","v":0}]
[{"$nulls":11},{"$f":"SUM(G55:K55)","v":0}]
[{"$nulls":11},0]
[{"$nulls":11},0]
[{"$nulls":11},0]
[{"$nulls":11},0]
[{"$nulls":11},0]
[{"$nulls":11},0]
[{"$nulls":11},0]
[{"$nulls":11},0]
[{"$nulls":11},0]
[{"$nulls":11},0]
[{"$nulls":5},"Sub-total: ",{"$f":"SUM(G54:G65)","v":0},{"$f":"SUM(H54:H65)","v":0},{"$f":"SUM(I54:I65)","v":0},{"$f":"SUM(J54:J65)","v":0},{"$f":"SUM(K54:K65)","v":0},{"$f":"SUM(G66:K66)","v":0}]
[]
[{"$nulls":5},"TOTAL CONTRACTUAL: ",{"$f":"G28+G51+G66","v":0},0,0,0,0,0]
[]
[null,"Additional Explanation (as needed):"]

{"sheet":"g. Construction","index":8,"n_rows":124,"n_cols":6,"rows_kept":124,"cut":false,"hidden":false,"merged":[[123,1,124,5],[9,1,9,5],[32,1,32,5],[98,1,98,5],[54,1,54,5],[76,1,76,5],[121,1,121,2],[119,1,119,2],[97,1,97,2],[75,1,75,2],[53,1,53,2],[31,1,31,2],[6,1,6,2],[6,3,6,5],[1,1,1,2],[2,1,2,5],[3,1,3,5]]}
[]
[null,"Detailed Budget Justification"]
[null,"g. Construction"]
[null,"INSTRUCTIONS - PLEASE READ!!!\n1. Construction, for the purpose of budgeting, is defined as all types of work done on a particular building, including erecting, altering, or remodeling. Construction conducted by the award recipient is entered on this page. Any construction work that is performed by a contractor or subrecipient should be entered under f. Contractual.\n2. List all proposed construction below, providing a basis of cost such as engineering estimates, prior construction, etc., and briefly justify its need as it applies to the Statement of Project Objectives.\n3. Each budget period is rounded to the nearest dollar.\n4. If additional rows are needed, please see instruction box #3 on the Instructions tab."]
[]
[]
[null,"Overall description of construction activities:"]
[]
[null,"SOPO Task #","General Description","Cost             ","Basis of Cost","Justification of need"]
[null,"Budget Period 1"]
[null,6,"EXAMPLE ONLY!!! Three days of excavation for platform site",28000,"Engineering estimate","Site must be prepared for construction of platform."]
{"$rows_empty":20}
[null,"Budget Period 1 Total",null,{"$f":"SUM(D12:D31)","v":0}]
[null,"Budget Period 2"]
{"$rows_empty":20}
[null,"Budget Period 2 Total",null,{"$f":"SUM(D34:D53)","v":0}]
[null,"Budget Period 3"]
{"$rows_empty":20}
[null,"Budget Period 3 Total",null,{"$f":"SUM(D56:D75)","v":0}]
[null,"Budget Period 4"]
{"$rows_empty":20}
[null,"Budget Period 4 Total",null,{"$f":"SUM(D78:D97)","v":0}]
[null,"Budget Period 5"]
{"$rows_empty":20}
[null,"Budget Period 5 Total",null,{"$f":"SUM(D100:D119)","v":0}]
[]
[null,"TOTAL CONSTRUCTION",null,{"$f":"(D32+D54+D76+D98+D120)","v":0}]
[]
[null,"Additional Explanation (as needed):"]

{"sheet":"h. Other","index":9,"n_rows":121,"n_cols":6,"rows_kept":121,"cut":false,"hidden":false,"merged":[[121,1,122,5],[1,1,1,2],[2,1,2,5],[3,1,3,5],[6,1,6,5],[51,2,51,5],[29,2,29,5],[73,2,73,5],[95,2,95,5],[118,1,118,2],[116,1,116,2],[94,1,94,2],[72,1,72,2],[50,1,50,2],[28,1,28,2]]}
[]
[null,"Detailed Budget Justification"]
[null,"h. Other Direct Costs"]
[null,"INSTRUCTIONS - PLEASE READ!!!\n1. Other direct costs are direct cost items required for the project which do not fit clearly into other categories.  These direct costs must not be included in the indirect costs (for which the indirect rate is being applied for this project).  Examples are: tuition, printing costs, usage fees, etc. which can be directly charged to the project and are not duplicated in indirect costs (overhead costs).\n2. Basis of cost are items such as contractor quotes, prior purchases of similar or like items, published price list, etc.\n3. Each budget period is rounded to the nearest dollar.\n4. Required - list formulas for each cost in the comments section. \n5. If additional rows are needed, please see instruction box #3 on the Instructions tab."]
[]
[null,"SOPO Task #","General Description and SOPO Task #"," Cost             ","Basis of Cost","Justification of need"]
[null,"Budget Period 1"]
[null,1,"EXAMPLE!!!  Grad student tuition - tasks 1-3",16000,"Established UCD costs","Support of graduate students working on project "]
{"$rows_empty":20}
[null,"Budget Period 1 Total",null,{"$f":"SUM(D9:D28)","v":0}]
[null,null,"Budget Period 2"]
{"$rows_empty":20}
[null,"Budget Period 2 Total",null,{"$f":"SUM(D31:D50)","v":0}]
[null,null,"Budget Period 3"]
{"$rows_empty":20}
[null,"Budget Period 3 Total",null,{"$f":"SUM(D53:D72)","v":0}]
[null,null,"Budget Period 4"]
{"$rows_empty":20}
[null,"Budget Period 4 Total",null,{"$f":"SUM(D75:D94)","v":0}]
[null,null,"Budget Period 5"]
{"$rows_empty":20}
[null,"Budget Period 5 Total",null,{"$f":"SUM(D97:D116)","v":0}]
[]
[null,"TOTAL OTHER DIRECT COSTS",null,{"$f":"D73+D51+D29+D95+D117","v":0}]
[]
[null,"Additional Explanation (Required - list formulas for each cost):"]

{"sheet":"i. Indirect","index":10,"n_rows":30,"n_cols":12,"rows_kept":30,"cut":false,"hidden":false,"merged":[[11,1,11,4],[12,1,12,4],[13,1,13,4],[14,1,14,4],[15,1,15,4],[1,11,1,12],[1,1,1,7],[8,11,8,12],[9,11,9,12],[10,11,10,12],[7,11,7,12],[5,1,6,4],[7,1,7,4],[8,1,8,4],[2,1,2,12],[3,1,3,12],[9,1,9,4],[10,1,10,4],[5,11,6,12],[5,5,6,5],[27,1,27,12],[29,1,31,12],[7,10,10,10],[5,6,6,6],[5,7,6,7],[5,8,6,8],[5,9,6,9],[5,10,6,10],[12,11,12,12],[11,11,11,12],[18,1,18,12],[13,11,13,12],[16,11,16,12],[14,11,14,12],[15,11,15,12],[16,1,16,4]]}
[]
[null,"Detailed Budget Justification "]
[null,"i. Indirect Costs"]
[null,"INSTRUCTIONS - PLEASE READ!!!\n1. Fill out the table below to indicate how the indirect costs are calculated. Use the box below to provide additional explanation regarding the indirect rate calculation.  \n2. The rates and how they are applied should not be averaged to get one indirect cost percentage. Complex calculations or rates that do not do not correspond to the below categories should be described/provided in the Additional Explanation section below. If questions exist, consult with the DOE contact before filling out this section. \n3. The indirect rate should be applied to both the Federal Share and Recipient Cost Share. \n4. Each budget period is rounded to the nearest dollar."]
[]
[null,"Provide ONLY Applicable Rates:",null,null,null,"Budget Period 1","Budget Period 2","Budget Period 3","Budget Period 4","Budget Period 5","Total","Explanation of BASE \nExample: Labor + Fringe"]
[]
[null,"Overhead Rate %"]
[null,"General & Administrative (G&A) %"]
[null,"FCCM Rate (if applicable) %"]
[null,"OTHER Indirect Rate %"]
[null,"Indirect Costs (As Applicable):"]
[null,"Overhead Costs $",{"$nulls":8},{"$f":"ROUND(SUM(F13:J13),0)","v":0}]
[null,"G&A Costs $",{"$nulls":8},{"$f":"ROUND(SUM(F14:J14),0)","v":0}]
[null,"FCCM Costs (if applicable) $",{"$nulls":8},{"$f":"ROUND(SUM(F15:J15),0)","v":0}]
[null," OTHER Indirect Costs $",{"$nulls":8},{"$f":"ROUND(SUM(F16:J16),0)","v":0}]
[null,"Total Indirect Costs Requested:",null,null,null,{"$f":"ROUND(SUM(F13:F16),0)","v":0},{"$f":"ROUND(SUM(G13:G16),0)","v":0},{"$f":"ROUND(SUM(H13:H16),0)","v":0},{"$f":"ROUND(SUM(I13:I16),0)","v":0},{"$f":"ROUND(SUM(J13:J16),0)","v":0},{"$f":"ROUND(SUM(F17:J17),0)","v":0}]
[]
[null,"A federally approved indirect rate agreement, or rate proposed (supported and agreed upon by DOE for estimating purposes) is required if reimbursement of indirect costs is requested.  Please check (X) one of the options below and provide the requested information if it has not already been provided as requested, or has changed.  "]
[]
[null,null,null,"An indirect rate has been approved or negotiated with a federal government agency with a current effective period of: "]
[null,null,null,"A copy of the latest rate agreement is included with this application and will be provided electronically to the Grants Officer for this project."]
[]
[null,null,null,"The organization does not have a current, federally approved indirect cost rate agreement and has provided an indirect rate proposal in support of the proposed costs."]
[]
[null,null,null,"This organization has elected to apply de minimis rate up to 15% in accordance with 2 CFR 200.414(f)."]
[]
[null,"Provide an explanation of how the indirect cost rate was applied."]
[]
[null,"Additional Explanation (as needed): *IMPORTANT:  Please use this box (or an attachment) to further explain how the total indirect costs were calculated.  If the total indirect costs are a cumulative amount of more than one calculation or rate application, the explanation and calculations should identify all rates used, along with the base they were applied to (and how the base was derived), and a total for each (along with grand total).  "]

{"sheet":"j. Cost Share","index":11,"n_rows":34,"n_cols":10,"rows_kept":34,"cut":false,"hidden":false,"merged":[[33,1,34,9],[2,1,2,9],[1,1,1,3],[3,1,3,9],[30,5,30,6],[1,5,1,9],[27,1,27,3],[31,1,32,2],[31,3,32,3],[31,4,32,8],[31,9,32,9]]}
[]
[null,"Detailed Budget Justification"]
[null,"Cost Share"]
[null,"INSTRUCTIONS - PLEASE READ!!!\n1. Cost Share is the portion of project costs not paid by Federal funds (captured in tabs a. Personnel through i. Indirect) or resources. Cost Share is not a cost category or a place to capture costs, this is the place to reflect cost share funds allocated to cover project costs already captured on tabs a. Personnel through i. Indirect.\n2. A detailed presentation of the cash or cash value of all cost share proposed must be provided in the table below. All items in the form below must be identified within the applicable cost category tabs a. through i. in addition to the detailed presentation of the cash or cash value of all cost share proposed provided in the table below. Identify the source organization & amount of each cost share item proposed in the award. \n3. Cash Cost Share - encompasses all project costs paid for by the recipient, subrecipient, or third party (an entity that does not have a role in performing the scope of work) for costs incurred and paid for during the project. This includes when an organization pays for personnel, supplies, equipment, etc. for their own company with organizational resources. If the item or service is reimbursed for, it is cash cost share. All cost share items must be necessary to the performance of the project. Contractors may not provide cost share. Any partial donation of goods or services is considered a discount and is not allowable.  \n4. In Kind Cost Share - encompasses all resources allocated to the project made by the recipient, subrecipient, or third party (an entity that does not have a role in performing the scope of work) where a value of the resource can be readily determined, verified and justified but where no actual cash is transacted in securing the good or service comprising the resource. In Kind cost share items include volunteer personnel hours, the donation of space or use of equipment, etc. The cash value and calculations thereof for all In Kind cost share items must be justified and explained in the Cost Share Item section below. All cost share items must be necessary to the performance of the project. If questions exist, consult the DOE contact before filling out In Kind cost share in this section. Contractors may not provide cost share.  Any partial donation of goods or services is considered a discount and is not allowable.  \n5. Funds from other Federal sources MAY NOT be counted as cost share. This prohibition includes FFRDC sub-recipients. Non-Federal sources include any source not originally derived from Federal funds. \n6. Cost sharing commitment letters from subrecipients and third parties must be provided with the original application.\n7. Fee or profit, including foregone fee or profit, are not allowable as project costs (including cost share) under any resulting award. The project may only incur those costs that are allowable and allocable to the project (including cost share) as determined in accordance with the applicable cost principles prescribed in FAR Part 31 for For-Profit entities and 2 CFR Part 200 Subpart E - Cost Principles for all other non-federal entities.\n8. A Recipient cannot claim \"unrecovered indirect costs\" as a Cost Share resource, without prior approval.   \n9. NOTE: Each cost share item entered below must align with an expense listed in the various tabs of this workbook. If the expense names or dollar amounts do not align with related expense, please provide an explanation to clarify in the Additional Explanation section.  \n10. Each budget period is rounded to the nearest dollar. \n11. If additional rows are needed, please see instruction box #3 on the Instructions tab."]
[]
[null,"Organization/Source                 ","Type (Cash or In Kind) ","Cost Share Item ","Budget Period 1","Budget Period 2","Budget Period 3","Budget Period 4","Budget Period 5","Total Project Cost Share"]
[null,"ABC Company\nEXAMPLE!!!","Cash","Project partner ABC Company will provide 20 PV modules for product development at the price of $680 per module",13600,{"$nulls":4},{"$f":"SUM(E7:G7)","v":13600}]
[{"$nulls":9},{"$f":"SUM(E8:I8)","v":0}]
[{"$nulls":9},0]
[{"$nulls":9},0]
[{"$nulls":9},0]
[{"$nulls":9},0]
[{"$nulls":9},0]
[{"$nulls":9},0]
[{"$nulls":9},0]
[{"$nulls":9},0]
[{"$nulls":9},0]
[{"$nulls":9},0]
[{"$nulls":9},0]
[{"$nulls":9},0]
[{"$nulls":9},0]
[{"$nulls":9},0]
[{"$nulls":9},0]
[{"$nulls":9},0]
[{"$nulls":9},0]
[{"$nulls":9},0]
[{"$nulls":9},0]
[null,"TOTAL COST SHARE",null,null,{"$f":"ROUND(SUM(E8:E27),0)","v":0},0,0,0,0,0]
[]
[null,null,null,"Cost Share Percentage per Budget Period",{"$f":"IFERROR(IF(E28>0,E28/Summary!H13,0),0)","v":0},{"$f":"IFERROR(IF(F28>0,F28/Summary!H14,0),0)","v":0},{"$f":"IFERROR(IF(G28>0,G28/Summary!H15,0),0)","v":0},{"$f":"IFERROR(IF(H28>0,H28/Summary!H16,0),0)","v":0},{"$f":"IFERROR(IF(I28>0,I28/Summary!H17,0),0)","v":0}]
[]
[null,"Total Project Cost:  ",null,{"$f":"Summary!H35","v":0},"Cost Share Percent of Award:",{"$nulls":4},{"$f":"IF(D32>0,J28/D32,0)","v":0}]
[]
[null,"Additional Explanation (as needed):"]

{"sheet":"SF-424A Cost Categories","index":12,"n_rows":44,"n_cols":10,"rows_kept":44,"cut":false,"hidden":false,"merged":[[33,1,33,9],[25,2,25,3],[26,2,26,3],[27,2,27,3],[29,2,29,3],[32,2,32,3],[1,1,1,3],[4,3,4,4],[24,2,24,3],[20,2,20,3],[21,2,21,3],[22,2,22,3],[23,2,23,3],[16,1,16,2],[17,1,17,9],[18,1,19,1],[18,2,19,3],[4,6,4,7],[5,1,5,9],[6,1,6,9],[7,1,7,9],[8,1,9,1],[8,2,9,2],[8,3,9,3],[8,4,8,5],[8,6,8,9],[4,1,4,2],[18,4,18,7],[18,9,19,9],[28,2,28,3],[30,2,30,3],[31,1,31,9],[42,1,42,2],[42,3,42,6],[42,8,42,9],[43,1,43,9],[34,2,34,3],[35,2,35,3],[36,2,36,3],[37,2,37,3],[38,2,38,3]]}
[]
[null,"Detailed Budget Justification",{"$nulls":7},"Attachment 3"]
[]
[]
[null,"Applicant Name:",null,{"$f":"Summary!C5","v":0},null,"Award Number:",{"$f":"Summary!C4","v":0}]
[null,"Budget Information - Non Construction Programs"]
[null,"OMB Number: 4040-0006\nExpiration Date: 06/30/2028"]
[null,"Section A - Budget Summary"]
[null,null,"Grant Program Function or Activity","Assistance Listing Number","Estimated Unobligated Funds",null,"New or Revised Budget"]
[{"$nulls":4},"Federal","Non-Federal ","Federal","Non-Federal",null,"Total"]
[null,null,"(a)","(b)","(c)","(d)","(e)","(f)",null,"(g)"]
[null,"1.","Budget Period 1",null,null,null,{"$f":"ROUND(Summary!D13,0)","v":0},{"$f":"ROUND(Summary!F13,0)","v":0},null,{"$f":"ROUND(SUM(E12:H12),0)","v":0}]
[null,"2.","Budget Period 2",null,null,null,{"$f":"ROUND(Summary!D14,0)","v":0},{"$f":"ROUND(Summary!F14,0)","v":0},null,{"$f":"ROUND(SUM(E13:H13),0)","v":0}]
[null,"3.","Budget Period 3",null,null,null,{"$f":"ROUND(Summary!D15,0)","v":0},{"$f":"ROUND(Summary!F15,0)","v":0},null,{"$f":"ROUND(SUM(E14:H14),0)","v":0}]
[null,"4.","Budget Period 4",null,null,null,{"$f":"ROUND(Summary!D16,0)","v":0},{"$f":"ROUND(Summary!F16,0)","v":0},null,{"$f":"ROUND(SUM(E15:H15),0)","v":0}]
[null,"5.","Budget Period 5",null,null,null,{"$f":"ROUND(Summary!D17,0)","v":0},{"$f":"ROUND(Summary!F17,0)","v":0},null,{"$f":"ROUND(SUM(E16:H16),0)","v":0}]
[null,"Totals",{"$nulls":4},{"$f":"ROUND(SUM(G12:G16),0)","v":0},{"$f":"ROUND(SUM(H12:H16),0)","v":0},null,{"$f":"ROUND(SUM(J12:J16),0)","v":0}]
[null,"Section B - Budget Categories"]
[null,"6.","Object Class Categories",null,"Grant Program, Function or Activity",{"$nulls":4},"Total"]
[{"$nulls":4},"Budget Period 1","Budget Period 2","Budget Period 3","Budget Period 4","Budget Period 5"]
[null,null,"a.  Personnel",null,{"$f":"ROUND(Summary!C21,0)","v":0},{"$f":"ROUND(Summary!D21,0)","v":0},{"$f":"ROUND(Summary!E21,0)","v":0},{"$f":"ROUND(Summary!F21,0)","v":0},{"$f":"ROUND(Summary!G21,0)","v":0},{"$f":"ROUND(SUM(E21:I21),0)","v":0}]
[null,null,"b.  Fringe Benefits",null,{"$f":"ROUND(Summary!C22,0)","v":0},{"$f":"ROUND(Summary!D22,0)","v":0},{"$f":"ROUND(Summary!E22,0)","v":0},{"$f":"ROUND(Summary!F22,0)","v":0},{"$f":"ROUND(Summary!G22,0)","v":0},0]
[null,null,"c.  Travel",null,{"$f":"ROUND(Summary!C23,0)","v":0},{"$f":"ROUND(Summary!D23,0)","v":0},{"$f":"ROUND(Summary!E23,0)","v":0},{"$f":"ROUND(Summary!F23,0)","v":0},{"$f":"ROUND(Summary!G23,0)","v":0},0]
[null,null,"d.  Equipment",null,{"$f":"ROUND(Summary!C24,0)","v":0},{"$f":"ROUND(Summary!D24,0)","v":0},{"$f":"ROUND(Summary!E24,0)","v":0},{"$f":"ROUND(Summary!F24,0)","v":0},{"$f":"ROUND(Summary!G24,0)","v":0},0]
[null,null,"e.  Supplies",null,{"$f":"ROUND(Summary!C25,0)","v":0},{"$f":"ROUND(Summary!D25,0)","v":0},{"$f":"ROUND(Summary!E25,0)","v":0},{"$f":"ROUND(Summary!F25,0)","v":0},{"$f":"ROUND(Summary!G25,0)","v":0},0]
[null,null,"f.  Contractual",null,{"$f":"ROUND(Summary!C30,0)","v":0},{"$f":"ROUND(Summary!D30,0)","v":0},{"$f":"ROUND(Summary!E30,0)","v":0},{"$f":"ROUND(Summary!F30,0)","v":0},{"$f":"ROUND(Summary!G30,0)","v":0},0]
[null,null,"g.  Construction",null,{"$f":"ROUND(Summary!C31,0)","v":0},{"$f":"ROUND(Summary!D31,0)","v":0},{"$f":"ROUND(Summary!E31,0)","v":0},{"$f":"ROUND(Summary!F31,0)","v":0},{"$f":"ROUND(Summary!G31,0)","v":0},0]
[null,null,"h.  Other",null,{"$f":"ROUND(Summary!C32,0)","v":0},{"$f":"ROUND(Summary!D32,0)","v":0},{"$f":"ROUND(Summary!E32,0)","v":0},{"$f":"ROUND(Summary!F32,0)","v":0},{"$f":"ROUND(Summary!G32,0)","v":0},0]
[null,null,"i.  Total Direct Charges (sum of 6a-6h)",null,{"$f":"ROUND(Summary!C33,0)","v":0},{"$f":"ROUND(Summary!D33,0)","v":0},{"$f":"ROUND(Summary!E33,0)","v":0},{"$f":"ROUND(Summary!F33,0)","v":0},{"$f":"ROUND(Summary!G33,0)","v":0},0]
[null,null,"j.  Indirect Charges",null,{"$f":"ROUND(Summary!C34,0)","v":0},{"$f":"ROUND(Summary!D34,0)","v":0},{"$f":"ROUND(Summary!E34,0)","v":0},{"$f":"ROUND(Summary!F34,0)","v":0},{"$f":"ROUND(Summary!G34,0)","v":0},0]
[null,null,"k.  Totals (sum of 6i-6j)",null,{"$f":"ROUND(SUM(E29:E30),0)","v":0},0,0,0,0,0]
[]
[null,"7.","Program Income",null,0,0,0,0,0,{"$f":"ROUND(SUM(E33:H33),0)","v":0}]
[null,"Section C - Non-Federal Resources"]
[null,null,"(a) Grant Program",null,"(b) Applicant","(c ) State","(d) Other Sources",null,null,"(e) Totals"]
[null,"8.",{"$f":"G5","v":0},{"$nulls":6},{"$f":"ROUND(SUM(E36:G36),0)","v":0}]
[null,"9.",{"$nulls":7},{"$f":"ROUND(SUM(E37:G37),0)","v":0}]
[null,"10.",{"$nulls":7},0]
[null,"11.",{"$nulls":7},0]
[null,"12. TOTAL (sum of lines 8-11)",null,null,{"$f":"ROUND(SUM(E36:E39),0)","v":0},{"$f":"ROUND(SUM(F36:F39),0)","v":0},{"$f":"ROUND(SUM(G36:G39),0)","v":0},null,null,{"$f":"ROUND(SUM(J36:J39),0)","v":0}]
[]
[{"$nulls":9},"Standard Form 424A (Rev. 7- 97)"]
[{"$nulls":8},"Prescribed by OMB (Circular A-102)"]
[null,"Authorized for Local Reproduction"]

{"sheet":"SF-424A Minus FFRDC","index":13,"n_rows":44,"n_cols":10,"rows_kept":44,"cut":false,"hidden":false,"merged":[[1,1,1,3],[4,3,4,4],[16,1,16,2],[17,1,17,9],[18,1,19,1],[18,2,19,3],[4,1,4,2],[4,6,4,7],[5,1,5,9],[6,1,6,9],[7,1,7,9],[8,1,9,1],[8,2,9,2],[8,3,9,3],[8,4,8,5],[8,6,8,9],[33,1,33,9],[25,2,25,3],[26,2,26,3],[27,2,27,3],[29,2,29,3],[32,2,32,3],[18,4,18,7],[18,9,19,9],[28,2,28,3],[30,2,30,3],[31,1,31,9],[24,2,24,3],[20,2,20,3],[21,2,21,3],[22,2,22,3],[23,2,23,3],[42,1,42,2],[42,3,42,6],[42,8,42,9],[43,1,43,9],[34,2,34,3],[35,2,35,3],[36,2,36,3],[37,2,37,3],[38,2,38,3]]}
[]
[null,"Detailed Budget Justification",{"$nulls":7},"Attachment 3"]
[]
[]
[null,"Applicant Name:",null,{"$f":"Summary!C5","v":0},null,"Award Number:",{"$f":"Summary!C4","v":0}]
[null,"Budget Information - Non Construction Programs"]
[null,"OMB Number: 4040-0006\nExpiration Date: 06/30/2028"]
[null,"Section A - Budget Summary"]
[null,null,"Grant Program Function or Activity","Assistance Listing Number","Estimated Unobligated Funds",null,"New or Revised Budget"]
[{"$nulls":4},"Federal","Non-Federal ","Federal","Non-Federal",null,"Total"]
[null,null,"(a)","(b)","(c)","(d)","(e)","(f)",null,"(g)"]
[null,"1.","Budget Period 1",null,null,null,{"$f":"ROUND(Summary!D13,0)-ROUND(Summary!C29,0)","v":0},{"$f":"ROUND(Summary!F13,0)","v":0},null,{"$f":"ROUND(SUM(E12:H12),0)","v":0}]
[null,"2.","Budget Period 2",null,null,null,{"$f":"ROUND(Summary!D14,0)-ROUND(Summary!D29,0)","v":0},{"$f":"ROUND(Summary!F14,0)","v":0},null,{"$f":"ROUND(SUM(E13:H13),0)","v":0}]
[null,"3.","Budget Period 3",null,null,null,{"$f":"ROUND(Summary!D15,0)-ROUND(Summary!E29,0)","v":0},{"$f":"ROUND(Summary!F15,0)","v":0},null,{"$f":"ROUND(SUM(E14:H14),0)","v":0}]
[null,"4.","Budget Period 4",null,null,null,{"$f":"ROUND(Summary!D16,0)-ROUND(Summary!F29,0)","v":0},{"$f":"ROUND(Summary!F16,0)","v":0},null,{"$f":"ROUND(SUM(E15:H15),0)","v":0}]
[null,"5.","Budget Period 5",null,null,null,{"$f":"ROUND(Summary!D17,0)-ROUND(Summary!G29,0)","v":0},{"$f":"ROUND(Summary!F17,0)","v":0},null,{"$f":"ROUND(SUM(E16:H16),0)","v":0}]
[null,"Totals",{"$nulls":4},{"$f":"ROUND(SUM(G12:G16),0)","v":0},{"$f":"ROUND(SUM(H12:H16),0)","v":0},null,{"$f":"ROUND(SUM(J12:J16),0)","v":0}]
[null,"Section B - Budget Categories"]
[null,"6.","Object Class Categories",null,"Grant Program, Function or Activity",{"$nulls":4},"Total"]
[{"$nulls":4},"Budget Period 1","Budget Period 2","Budget Period 3","Budget Period 4","Budget Period 5"]
[null,null,"a.  Personnel",null,{"$f":"ROUND(Summary!C21,0)","v":0},{"$f":"ROUND(Summary!D21,0)","v":0},{"$f":"ROUND(Summary!E21,0)","v":0},{"$f":"ROUND(Summary!F21,0)","v":0},{"$f":"ROUND(Summary!G21,0)","v":0},{"$f":"ROUND(SUM(E21:I21),0)","v":0}]
[null,null,"b.  Fringe Benefits",null,{"$f":"ROUND(Summary!C22,0)","v":0},{"$f":"ROUND(Summary!D22,0)","v":0},{"$f":"ROUND(Summary!E22,0)","v":0},{"$f":"ROUND(Summary!F22,0)","v":0},{"$f":"ROUND(Summary!G22,0)","v":0},0]
[null,null,"c.  Travel",null,{"$f":"ROUND(Summary!C23,0)","v":0},{"$f":"ROUND(Summary!D23,0)","v":0},{"$f":"ROUND(Summary!E23,0)","v":0},{"$f":"ROUND(Summary!F23,0)","v":0},{"$f":"ROUND(Summary!G23,0)","v":0},0]
[null,null,"d.  Equipment",null,{"$f":"ROUND(Summary!C24,0)","v":0},{"$f":"ROUND(Summary!D24,0)","v":0},{"$f":"ROUND(Summary!E24,0)","v":0},{"$f":"ROUND(Summary!F24,0)","v":0},{"$f":"ROUND(Summary!G24,0)","v":0},0]
[null,null,"e.  Supplies",null,{"$f":"ROUND(Summary!C25,0)","v":0},{"$f":"ROUND(Summary!D25,0)","v":0},{"$f":"ROUND(Summary!E25,0)","v":0},{"$f":"ROUND(Summary!F25,0)","v":0},{"$f":"ROUND(Summary!G25,0)","v":0},0]
[null,null,"f.  Contractual",null,{"$f":"ROUND(Summary!C30,0)-Summary!C29","v":0},{"$f":"ROUND(Summary!D30,0)-Summary!D29","v":0},{"$f":"ROUND(Summary!E30,0)-Summary!E29","v":0},{"$f":"ROUND(Summary!F30,0)-Summary!F29","v":0},{"$f":"ROUND(Summary!G30,0)-Summary!G29","v":0},0]
[null,null,"g.  Construction",null,{"$f":"ROUND(Summary!C31,0)","v":0},{"$f":"ROUND(Summary!D31,0)","v":0},{"$f":"ROUND(Summary!E31,0)","v":0},{"$f":"ROUND(Summary!F31,0)","v":0},{"$f":"ROUND(Summary!G31,0)","v":0},0]
[null,null,"h.  Other",null,{"$f":"ROUND(Summary!C32,0)","v":0},{"$f":"ROUND(Summary!D32,0)","v":0},{"$f":"ROUND(Summary!E32,0)","v":0},{"$f":"ROUND(Summary!F32,0)","v":0},{"$f":"ROUND(Summary!G32,0)","v":0},0]
[null,null,"i.  Total Direct Charges (sum of 6a-6h)",null,{"$f":"ROUND(Summary!C33,0)","v":0},{"$f":"ROUND(Summary!D33,0)","v":0},{"$f":"ROUND(Summary!E33,0)","v":0},{"$f":"ROUND(Summary!F33,0)","v":0},{"$f":"ROUND(Summary!G33,0)","v":0},0]
[null,null,"j.  Indirect Charges",null,{"$f":"ROUND(Summary!C34,0)","v":0},{"$f":"ROUND(Summary!D34,0)","v":0},{"$f":"ROUND(Summary!E34,0)","v":0},{"$f":"ROUND(Summary!F34,0)","v":0},{"$f":"ROUND(Summary!G34,0)","v":0},0]
[null,null,"k.  Totals (sum of 6i-6j)",null,{"$f":"ROUND(SUM(E29:E30),0)","v":0},0,0,0,0,0]
[]
[null,"7.","Program Income",null,0,0,0,0,0,{"$f":"ROUND(SUM(E33:H33),0)","v":0}]
[null,"Section C - Non-Federal Resources"]
[null,null,"(a) Grant Program",null,"(b) Applicant","(c ) State","(d) Other Sources",null,null,"(e) Totals"]
[null,"8.",{"$f":"G5","v":0},{"$nulls":6},{"$f":"ROUND(SUM(E36:G36),0)","v":0}]
[null,"9.",{"$nulls":7},{"$f":"ROUND(SUM(E37:G37),0)","v":0}]
[null,"10.",{"$nulls":7},0]
[null,"11.",{"$nulls":7},0]
[null,"12. TOTAL (sum of lines 8-11)",null,null,{"$f":"ROUND(SUM(E36:E39),0)","v":0},{"$f":"ROUND(SUM(F36:F39),0)","v":0},{"$f":"ROUND(SUM(G36:G39),0)","v":0},null,null,{"$f":"ROUND(SUM(J36:J39),0)","v":0}]
[]
[{"$nulls":9},"Standard Form 424A (Rev. 7- 97)"]
[{"$nulls":8},"Prescribed by OMB (Circular A-102)"]
[null,"Authorized for Local Reproduction"]